fUST/lending_fUST_20250115
["ID","MTS","AMOUNT","RATE_DAILY","PERIOD"]
[348947805,1736885445054,-364.60525568,0.00022465,3]
[348947807,1736885445067,-135.39474432,0.00022465,3]
[348947809,1736885445076,-382.55150823,0.00022465,3]
[348947811,1736885445087,-232.58590127,0.00022465,3]
[348947812,1736885445096,-500.0,0.00022465,3]
[348947814,1736885445106,-500.0,0.00022465,3]
[348947816,1736885445115,-2436.93,0.00022465,3]
[348947818,1736885445125,-403.99238607,0.00022465,3]
[348947820,1736885445136,-625.68,0.00022465,3]
[348947822,1736885445145,-500.0,0.00022465,3]
[348947824,1736885445154,-500.0,0.00022465,3]
[348947825,1736885445164,-3095.32,0.00022465,3]
[348947827,1736885445173,-763.77,0.00022465,3]
[348947829,1736885445183,-93.82171266,0.00022465,3]
[348947945,1736885446711,-406.17828734,0.00022465,3]
[348947947,1736885446722,-500.0,0.00022465,3]
[348947949,1736885446731,-500.0,0.00022465,3]
[348947951,1736885446740,-1918.78,0.00022465,3]
[348947953,1736885446749,-566.45,0.00022465,3]
[348947955,1736885446759,-591.29,0.00022465,3]
[348947957,1736885446768,-839.63,0.00022465,3]
[348947959,1736885446777,-500.0,0.00022465,3]
[348947961,1736885446787,-500.0,0.00022465,3]
[348947963,1736885446796,-1724.78,0.00022465,3]
[348947965,1736885446805,-500.0,0.00022465,3]
[348947967,1736885446814,-500.0,0.00022465,3]
[348947969,1736885446823,-850.27,0.00022465,3]
[348947971,1736885446833,-500.0,0.00022465,3]
[348947973,1736885446842,-500.0,0.00022465,3]
[348947975,1736885446851,-791.14,0.00022465,3]
[348947977,1736885446860,-577.75,0.00022465,3]
[348947979,1736885446869,-870.6,0.00022465,3]
[348947981,1736885446879,-248.15711224,0.00022466,2]
[348947983,1736885446888,-1052.616121,0.00022521,2]
[348947985,1736885446897,-150.193438,0.000226,2]
[348947987,1736885446907,-500.0,0.00022602,3]
[348947989,1736885446917,-627.58,0.00022602,3]
[348947991,1736885446926,-555.73,0.00022602,3]
[348947993,1736885446935,-500.0,0.00022602,3]
[348947995,1736885446944,-500.0,0.00022602,3]
[348947997,1736885446954,-514.33143495,0.00022602,3]
[348947999,1736885446962,-500.0,0.00022602,3]
[348948001,1736885446972,-500.0,0.00022602,3]
[348948004,1736885446981,-500.0,0.00022602,3]
[348948005,1736885446990,-500.0,0.00022602,3]
[348948007,1736885446999,-500.0,0.00022602,3]
[348948009,1736885447008,-500.0,0.00022602,3]
[348948011,1736885447018,-500.0,0.00022602,3]
[348948013,1736885447027,-313.73,0.00022602,3]
[348948016,1736885447037,-500.0,0.00022602,3]
[348948018,1736885447046,-1003.96966209,0.00022602,3]
[348948223,1736885646206,5793.0,0.00015053,2]
[348948224,1736886107157,5294.13840642,0.00015053,2]
[348948225,1736886107194,4705.86159358,0.00015053,2]
[348948226,1736886161308,10000.0,0.00015053,2]
[348948227,1736886239998,400.0,0.00013973,2]
[348948233,1736886435111,-1434.5086937,0.000189,2]
[348948234,1736886435131,-135.33692363,0.00019956,2]
[348948235,1736886436146,-14.66307637,0.00019956,2]
[348948236,1736886436169,-300.0,0.0002,2]
[348948237,1736886436190,-859.443884,0.00020193,2]
[348948238,1736886436211,-400.0,0.00020447,2]
[348948239,1736886436233,-196.65861289,0.00020497,2]
[348948240,1736886436255,-300.0,0.00020612,2]
[348948241,1736886436277,-503.49609466,0.00020613,2]
[348948259,1736886632932,-354.15771764,0.0002,2]
[348948260,1736886632943,-656.49999736,0.00020407,2]
[348948261,1736886632952,-300.0,0.00020612,2]
[348948262,1736886632962,-8180.99228499,0.00020613,2]
[348948263,1736886632973,-16215.51162035,0.00020613,2]
[348948264,1736886632983,-167.4358876,0.00020617,2]
[348948265,1736886632993,-521.256,0.0002147,2]
[348948267,1736886633002,-212.12148591,0.000219,2]
[348948269,1736886633012,-166.81163018,0.00021903,2]
[348948270,1736886633022,-154.38,0.00021916,2]
[348948271,1736886633032,-500.0,0.00021916,2]
[348948272,1736886633042,-500.0,0.00021916,2]
[348948273,1736886633053,-500.0,0.00021916,2]
[348948274,1736886633062,-500.0,0.00021916,2]
[348948275,1736886633072,-500.0,0.00021916,2]
[348948276,1736886633082,-500.0,0.00021916,2]
[348948277,1736886633091,-500.0,0.00021916,2]
[348948278,1736886633101,-500.0,0.00021916,2]
[348948279,1736886633111,-500.0,0.00021916,2]
[348948280,1736886633121,-526.9562999,0.00021916,2]
[348948281,1736886633131,-500.0,0.00021916,2]
[348948282,1736886633141,-500.0,0.00021916,2]
[348948283,1736886633151,-500.0,0.00021916,2]
[348948284,1736886633160,-500.0,0.00021916,2]
[348948285,1736886633170,-242.82211919,0.00021916,2]
[348948286,1736886633180,-500.0,0.00021916,2]
[348948287,1736886633190,-500.0,0.00021916,2]
[348948288,1736886633200,-500.0,0.00021916,2]
[348948289,1736886633209,-500.0,0.00021916,2]
[348948290,1736886633219,-500.0,0.00021916,2]
[348948291,1736886633229,-500.0,0.00021916,2]
[348948292,1736886633239,-500.0,0.00021916,2]
[348948293,1736886633249,-500.0,0.00021916,2]
[348948294,1736886633260,-500.0,0.00021916,2]
[348948295,1736886633270,-500.0,0.00021916,2]
[348948296,1736886633280,-500.0,0.00021916,2]
[348948297,1736886633290,-500.0,0.00021916,2]
[348948298,1736886633299,-500.0,0.00021916,2]
[348948299,1736886633311,-500.0,0.00021916,2]
[348948300,1736886633320,-500.0,0.00021916,2]
[348948301,1736886633331,-500.0,0.00021916,2]
[348948302,1736886633341,-500.0,0.00021916,2]
[348948303,1736886633351,-294.75138871,0.00021916,2]
[348948304,1736886633362,-500.0,0.00021916,2]
[348948305,1736886633372,-500.0,0.00021916,2]
[348948306,1736886633382,-500.0,0.00021916,2]
[348948307,1736886633393,-500.0,0.00021916,2]
[348948308,1736886633403,-500.0,0.00021916,2]
[348948309,1736886633418,-500.0,0.00021916,2]
[348948310,1736886633429,-500.0,0.00021916,2]
[348948311,1736886633440,-500.0,0.00021916,2]
[348948312,1736886633450,-500.0,0.00021916,2]
[348948313,1736886633460,-510.37925264,0.00021916,2]
[348948314,1736886633470,-500.0,0.00021916,2]
[348948315,1736886633480,-500.0,0.00021916,2]
[348948316,1736886633490,-500.0,0.00021916,2]
[348948317,1736886633500,-500.0,0.00021916,2]
[348948318,1736886633510,-500.0,0.00021916,2]
[348948319,1736886633520,-500.0,0.00021916,2]
[348948320,1736886633531,-500.0,0.00021916,2]
[348948321,1736886633542,-500.0,0.00021916,2]
[348948322,1736886633553,-375.81584859,0.00021916,2]
[348948323,1736886633563,-500.0,0.00021916,2]
[348948324,1736886633574,-500.0,0.00021916,2]
[348948325,1736886633584,-500.0,0.00021916,2]
[348948326,1736886633595,-500.0,0.00021916,2]
[348948327,1736886633606,-338.393,0.00021916,2]
[348948328,1736886633616,-500.0,0.00021917,3]
[348948329,1736886633627,-500.0,0.00021917,3]
[348948330,1736886633638,-500.0,0.00021917,3]
[348948331,1736886633648,-500.0,0.00021917,3]
[348948332,1736886633658,-500.0,0.00021917,3]
[348948333,1736886633668,-500.0,0.00021917,3]
[348948334,1736886633678,-500.0,0.00021917,3]
[348948335,1736886633688,-508.7662507,0.00021917,3]
[348948336,1736886633698,-500.0,0.00021917,3]
[348948337,1736886633708,-500.0,0.00021917,3]
[348948338,1736886633718,-500.0,0.00021917,3]
[348948339,1736886633728,-500.0,0.00021917,3]
[348948340,1736886633738,-501.7526307,0.00021917,3]
[348948341,1736886633748,-500.0,0.00021917,3]
[348948342,1736886633758,-500.0,0.00021917,3]
[348948343,1736886633768,-387.89618185,0.00021917,3]
[348948376,1736886638614,-112.10381815,0.00021917,3]
[348948378,1736886638624,-500.0,0.00021917,3]
[348948380,1736886638634,-500.0,0.00021917,3]
[348948382,1736886638644,-500.0,0.00021917,3]
[348948384,1736886638654,-500.0,0.00021917,3]
[348948386,1736886638663,-500.0,0.00021917,3]
[348948388,1736886638672,-500.0,0.00021917,3]
[348948390,1736886638682,-500.0,0.00021917,3]
[348948392,1736886638691,-500.0,0.00021917,3]
[348948394,1736886638700,-513.68988886,0.00021917,3]
[348948396,1736886638710,-602.42,0.00021917,3]
[348948397,1736886638720,-500.0,0.00021917,3]
[348948398,1736886638729,-500.0,0.00021917,3]
[348948400,1736886638739,-500.0,0.00021917,3]
[348948402,1736886638748,-238.12243972,0.00021917,3]
[348948404,1736886638758,-500.0,0.00021917,3]
[348948406,1736886638767,-500.0,0.00021917,3]
[348948407,1736886638776,-606.47489614,0.00021917,3]
[348948408,1736886638790,-500.0,0.00021917,3]
[348948409,1736886638799,-640.11,0.00021917,3]
[348948410,1736886638808,-500.0,0.00021917,3]
[348948411,1736886638817,-500.0,0.00021917,3]
[348948412,1736886638828,-500.0,0.00021917,3]
[348948413,1736886638837,-550.91,0.00021917,3]
[348948414,1736886638846,-500.0,0.00021917,3]
[348948415,1736886638856,-500.0,0.00021917,3]
[348948416,1736886638866,-559.15,0.00021917,3]
[348948417,1736886638876,-500.0,0.00021917,3]
[348948418,1736886638885,-500.0,0.00021917,3]
[348948419,1736886638894,-500.0,0.00021917,3]
[348948420,1736886638903,-500.0,0.00021917,3]
[348948421,1736886638913,-500.0,0.00021917,3]
[348948422,1736886638922,-500.0,0.00021917,3]
[348948423,1736886638931,-500.0,0.00021917,3]
[348948424,1736886638940,-500.0,0.00021917,3]
[348948425,1736886638950,-500.0,0.00021917,3]
[348948426,1736886638960,-500.0,0.00021917,3]
[348948427,1736886638969,-339.61899784,0.00021917,3]
[348948428,1736886638978,-500.0,0.00021917,3]
[348948429,1736886638987,-500.0,0.00021917,3]
[348948430,1736886638996,-500.0,0.00021917,3]
[348948431,1736886639005,-518.48413427,0.00021917,3]
[348948432,1736886639014,-308.52134638,0.00021917,3]
[348948433,1736886639024,-500.0,0.00021917,3]
[348948434,1736886639033,-500.0,0.00021917,3]
[348948435,1736886639043,-500.0,0.00021917,3]
[348948436,1736886639054,-272.26056296,0.00021917,3]
[348948437,1736886639064,-500.0,0.00021917,3]
[348948438,1736886639073,-500.0,0.00021917,3]
[348948439,1736886639083,-500.0,0.00021917,3]
[348948440,1736886639092,-500.0,0.00021917,3]
[348948441,1736886639103,-500.0,0.00021917,3]
[348948442,1736886639113,-500.0,0.00021917,3]
[348948443,1736886639124,-500.0,0.00021917,3]
[348948444,1736886639134,-500.0,0.00021917,3]
[348948445,1736886639145,-500.0,0.00021917,3]
[348948446,1736886639157,-297.58400498,0.00021917,3]
[348948447,1736886639166,-500.0,0.00021917,3]
[348948448,1736886639175,-500.0,0.00021917,3]
[348948449,1736886639186,-500.0,0.00021917,3]
[348948450,1736886639198,-500.0,0.00021917,3]
[348948451,1736886639209,-500.0,0.00021917,3]
[348948452,1736886639221,-500.0,0.00021917,3]
[348948453,1736886639231,-500.0,0.00021917,3]
[348948454,1736886639241,-500.0,0.00021917,3]
[348948455,1736886639251,-500.0,0.00021917,3]
[348948456,1736886639261,-500.0,0.00021917,3]
[348948457,1736886639270,-500.0,0.00021917,3]
[348948458,1736886639279,-637.1,0.00021917,3]
[348948459,1736886639288,-500.0,0.00021917,3]
[348948460,1736886639298,-500.0,0.00021917,3]
[348948461,1736886639307,-500.0,0.00021917,3]
[348948462,1736886639316,-500.0,0.00021917,3]
[348948463,1736886639326,-254.02952928,0.00021917,3]
[348948464,1736886639335,-500.0,0.00021917,3]
[348948465,1736886639344,-500.0,0.00021917,3]
[348948466,1736886639354,-500.0,0.00021917,3]
[348948467,1736886639363,-500.0,0.00021917,3]
[348948468,1736886639372,-500.0,0.00021917,3]
[348948469,1736886639381,-198.57837585,0.00021917,3]
[348948470,1736886639391,-500.0,0.00021917,3]
[348948471,1736886639401,-500.0,0.00021917,3]
[348948472,1736886639411,-500.0,0.00021917,3]
[348948473,1736886639420,-500.0,0.00021917,3]
[348948474,1736886639430,-500.0,0.00021917,3]
[348948475,1736886639439,-805.7,0.00021917,2]
[348948476,1736886639448,-500.0,0.00021917,3]
[348948477,1736886639457,-14955.88,0.00021917,3]
[348948478,1736886639466,-532.48,0.00021917,3]
[348948479,1736886639475,-500.0,0.00021917,3]
[348948480,1736886639485,-602.56162415,0.00021917,3]
[348948481,1736886639503,-500.0,0.00021917,3]
[348948482,1736886639512,-500.0,0.00021917,3]
[348948483,1736886639521,-500.0,0.00021917,3]
[348948484,1736886639533,-500.0,0.00021917,3]
[348948485,1736886639542,-1684.27,0.00021917,3]
[348948486,1736886639692,-500.0,0.00021917,3]
[348948487,1736886639703,-500.0,0.00021917,3]
[348948488,1736886639714,-500.0,0.00021917,3]
[348948489,1736886639724,-500.0,0.00021917,3]
[348948490,1736886639734,-6590.62,0.00021917,2]
[348948491,1736886639744,-564.05,0.00021917,3]
[348948492,1736886639754,-500.0,0.00021917,3]
[348948493,1736886639763,-501.59,0.00021917,3]
[348948494,1736886639773,-349.63442904,0.00021917,3]
[348948495,1736886639783,-500.0,0.00021917,3]
[348948496,1736886639797,-550.51535658,0.00021917,3]
[348948497,1736886639807,-835.13,0.00021917,3]
[348948498,1736886639819,-2987.32,0.00021917,3]
[348948499,1736886639829,-1940.24,0.00021917,3]
[348948500,1736886639839,-500.0,0.00021917,3]
[348948501,1736886639848,-1867.08,0.00021917,3]
[348948502,1736886639858,-824.02,0.00021917,3]
[348948503,1736886639871,-500.0,0.00021917,3]
[348948504,1736886639882,-651.09,0.00021917,3]
[348948505,1736886639892,-500.0,0.00021917,3]
[348948506,1736886639902,-500.0,0.00021917,3]
[348948507,1736886639912,-500.0,0.00021917,3]
[348948508,1736886639922,-500.0,0.00021917,3]
[348948509,1736886639932,-500.0,0.00021917,3]
[348948510,1736886639942,-188.9,0.00021917,3]
[348948511,1736886639951,-729.95,0.00021917,3]
[348948512,1736886639961,-500.0,0.00021917,3]
[348948513,1736886639971,-500.0,0.00021917,3]
[348948514,1736886639980,-500.0,0.00021917,3]
[348948515,1736886639990,-2545.83,0.00021917,3]
[348948516,1736886640001,-500.0,0.00021917,3]
[348948517,1736886640010,-515.72813484,0.00021917,3]
[348948518,1736886640020,-500.0,0.00021917,3]
[348948519,1736886640029,-500.0,0.00021917,3]
[348948520,1736886640038,-1929.23,0.00021917,3]
[348948521,1736886640048,-1414.86,0.00021917,3]
[348948522,1736886640058,-516.16,0.00021917,3]
[348948523,1736886640068,-646.32,0.00021917,3]
[348948524,1736886640077,-1541.12,0.00021917,3]
[348948525,1736886640087,-500.0,0.00021917,3]
[348948526,1736886640096,-500.0,0.00021917,3]
[348948527,1736886640105,-722.26,0.00021917,3]
[348948528,1736886640114,-500.0,0.00021917,3]
[348948529,1736886640124,-500.0,0.00021917,3]
[348948530,1736886640134,-576.48,0.00021917,3]
[348948531,1736886640143,-500.0,0.00021917,3]
[348948532,1736886640153,-685.54,0.00021917,3]
[348948533,1736886640163,-500.0,0.00021917,3]
[348948534,1736886640172,-500.0,0.00021917,3]
[348948535,1736886640181,-500.0,0.00021917,2]
[348948536,1736886640191,-500.0,0.00021917,3]
[348948537,1736886640200,-500.88,0.00021917,3]
[348948538,1736886640210,-500.0,0.00021917,3]
[348948539,1736886640219,-500.0,0.00021917,3]
[348948540,1736886640229,-500.0,0.00021917,3]
[348948541,1736886640238,-170.47568167,0.00021917,3]
[348948542,1736886640247,-500.0,0.00021917,3]
[348948544,1736886640257,-500.0,0.00021917,3]
[348948546,1736886640267,-3646.45,0.00021917,3]
[348948547,1736886640276,-606.47737289,0.00021917,3]
[348948548,1736886640285,-500.0,0.00021917,3]
[348948549,1736886640294,-647.15,0.00021917,3]
[348948550,1736886640303,-500.0,0.00021917,3]
[348948551,1736886640313,-500.0,0.00021917,3]
[348948552,1736886640323,-1103.69,0.00021917,3]
[348948553,1736886640332,-500.0,0.00021917,3]
[348948554,1736886640341,-500.0,0.00021917,3]
[348948555,1736886640351,-500.0,0.00021917,3]
[348948556,1736886640361,-500.0,0.00021917,3]
[348948557,1736886640370,-1109.84,0.00021917,3]
[348948558,1736886640380,-1304.06915904,0.00021917,3]
[348948559,1736886640394,-117.73084096,0.00021917,3]
[348948560,1736886640403,-500.0,0.00021973,2]
[348948562,1736886640412,-31.50421404,0.00022,2]
[348948563,1736886640424,-144.49578596,0.00022,2]
[348948564,1736886640433,-268.66794262,0.00022053,2]
[348948565,1736886640442,-503.76072785,0.00022053,2]
[348948566,1736886640452,-177.70672555,0.00022053,2]
[348948567,1736886640461,-212.1214858,0.00022054,2]
[348948568,1736886640471,-500.0,0.00022054,3]
[348948569,1736886640480,-500.0,0.00022054,3]
[348948570,1736886640489,-500.0,0.00022054,3]
[348948571,1736886640499,-147.34529331,0.00022054,3]
[348948576,1736886640976,-352.65470669,0.00022054,3]
[348948577,1736886640987,-466.67137128,0.00022054,3]
[348948578,1736886640999,-148.91643473,0.00022054,3]
[348948579,1736886641008,-500.0,0.00022054,3]
[348948580,1736886641017,-602.42,0.00022054,3]
[348948581,1736886641027,-500.0,0.00022054,3]
[348948582,1736886641036,-226.29374857,0.00022054,3]
[348948612,1736886643766,-273.70625143,0.00022054,3]
[348948613,1736886643776,-144.11432657,0.00022054,3]
[348948614,1736886643792,-355.88567343,0.00022054,3]
[348948615,1736886643802,-500.0,0.00022054,3]
[348948616,1736886643812,-500.0,0.00022054,3]
[348948617,1736886643823,-212.17547302,0.00022054,3]
[348948618,1736886643834,-550.91,0.00022054,3]
[348948620,1736886643844,-500.0,0.00022054,3]
[348948622,1736886643854,-500.0,0.00022054,3]
[348948624,1736886643863,-233.35305406,0.00022054,3]
[348948627,1736886643876,-266.64694594,0.00022054,3]
[348948629,1736886643886,-500.0,0.00022054,3]
[348948631,1736886643896,-259.89530256,0.00022054,3]
[348948660,1736886646727,-240.10469744,0.00022054,3]
[348948661,1736886646736,-500.0,0.00022054,3]
[348948662,1736886646746,-500.0,0.00022054,3]
[348948663,1736886646756,-500.0,0.00022054,3]
[348948664,1736886646766,-542.16219644,0.00022054,3]
[348948665,1736886646775,-500.0,0.00022054,3]
[348948666,1736886646785,-500.0,0.00022054,3]
[348948667,1736886646797,-182.76,0.00022054,3]
[348948668,1736886646807,-500.0,0.00022054,3]
[348948669,1736886646817,-500.0,0.00022054,3]
[348948670,1736886646826,-511.43,0.00022054,3]
[348948671,1736886646837,-294.98,0.00022054,3]
[348948672,1736886646846,-500.0,0.00022054,3]
[348948673,1736886646855,-500.0,0.00022054,3]
[348948674,1736886646865,-500.0,0.00022054,3]
[348948675,1736886646875,-500.0,0.00022054,3]
[348948676,1736886646884,-500.0,0.00022054,3]
[348948677,1736886646893,-500.0,0.00022054,3]
[348948678,1736886646903,-500.0,0.00022054,3]
[348948679,1736886646911,-500.0,0.00022054,3]
[348948680,1736886646920,-543.16,0.00022054,3]
[348948681,1736886646929,-805.7,0.00022054,2]
[348948682,1736886646938,-500.0,0.00022054,3]
[348948683,1736886646947,-4620.84544378,0.00022054,3]
[348948690,1736887104524,368.005559,0.00013973,2]
[348948716,1736887634164,-1375.42169929,0.000189,2]
[348948717,1736887634185,-1686.03286046,0.00019223,2]
[348948718,1736887645283,-216.02017268,0.00019223,2]
[348948719,1736887645305,-166.831564,0.00019613,2]
[348948720,1736887645327,-506.06439459,0.00020167,2]
[348948721,1736887645349,-168.06843047,0.00020447,2]
[348948724,1736887708674,150.0,0.00023,61]
[348948735,1736887744157,150.0,0.00025,120]
[348948983,1736887835228,-199.93712853,0.00020447,2]
[348948984,1736887835238,-270.6858273,0.00020581,2]
[348948985,1736887835248,-429.721942,0.00020581,2]
[348948986,1736887835260,-270.58578513,0.00020798,2]
[348948987,1736887835270,-500.0,0.00020892,2]
[348948988,1736887835280,-612.26436141,0.00020892,2]
[348948989,1736887835290,-193.64690213,0.00020892,2]
[348948990,1736887835300,-500.0,0.00020892,2]
[348948991,1736887835309,-310.52793208,0.00020892,2]
[348948992,1736887835319,-500.0,0.00020892,2]
[348948993,1736887835331,-263.97953873,0.00020892,2]
[348948994,1736887835340,-139529.44911425,0.00020893,2]
[348948995,1736887835351,-300.0,0.00020893,2]
[348948998,1736887837779,-1602.05303314,0.00020893,2]
[348949021,1736887840025,-1732.10628219,0.00020893,2]
[348949120,1736887872167,396.80000098,0.00025,120]
[348949121,1736887900849,953.77192122,0.000189,2]
[348949124,1736888030396,349.454275,0.00013973,2]
[348949130,1736888826136,-2560.26592919,0.00016925,2]
[348949131,1736888826159,-5000.0,0.00017096,2]
[348949132,1736888826182,-1046.6003205,0.00017588,2]
[348949133,1736888826205,-355.281372,0.00018342,2]
[348949134,1736888826229,-300.0,0.00018367,2]
[348949135,1736888826252,-67.43267381,0.00018367,2]
[348949136,1736888847129,-1821.59247511,0.00018367,2]
[348949137,1736888897141,351.981561,0.00013973,2]
[348949145,1736888947106,-300.0,0.00017514,2]
[348949146,1736888947128,-8735.79474788,0.00017514,2]
[348949149,1736888958076,-1914.99623767,0.00017514,2]
[348949203,1736889032214,-300.0,0.00017513,2]
[348949206,1736889032223,-27247.0,0.00017513,2]
[348949208,1736889032233,-19093.8805405,0.00017515,2]
[348949209,1736889032242,-490.7942443,0.00017648,2]
[348949211,1736889032251,-519.40699503,0.00018063,2]
[348949213,1736889032260,-204.9114332,0.00018163,2]
[348949215,1736889032269,-1745.6719718,0.00018368,2]
[348949217,1736889032279,-24900.0,0.0001838,2]
[348949219,1736889032288,-152.0,0.00018748,2]
[348949221,1736889032297,-524.77417574,0.00018787,2]
[348949223,1736889032307,-519.40699501,0.00018858,2]
[348949225,1736889032317,-1429.65215498,0.000189,2]
[348949227,1736889032326,-420.0,0.00019118,2]
[348949229,1736889032337,-166.831564,0.00019178,2]
[348949231,1736889032346,-167.113179,0.00019414,2]
[348949232,1736889032356,-311.755,0.0001945,2]
[348949233,1736889032365,-280.74087118,0.00019481,2]
[348949234,1736889032374,-193.6773841,0.00019569,2]
[348949235,1736889032384,-500.0,0.00019579,2]
[348949236,1736889032393,-500.0,0.00019579,2]
[348949237,1736889032402,-500.0,0.00019579,2]
[348949238,1736889032411,-381.38555767,0.00019579,2]
[348949239,1736889032420,-500.0,0.00019579,2]
[348949240,1736889032430,-189.13752448,0.00019579,2]
[348949241,1736889032440,-500.0,0.00019579,2]
[348949242,1736889032449,-500.0,0.00019579,2]
[348949243,1736889032459,-500.0,0.00019579,2]
[348949244,1736889032468,-500.0,0.00019579,2]
[348949245,1736889032478,-500.0,0.00019579,2]
[348949246,1736889032487,-500.0,0.00019579,2]
[348949247,1736889032496,-500.0,0.00019579,2]
[348949248,1736889032506,-156.4210258,0.00019579,2]
[348949249,1736889032516,-500.0,0.00019579,2]
[348949250,1736889032525,-500.0,0.00019579,2]
[348949251,1736889032534,-500.0,0.00019579,2]
[348949252,1736889032544,-277.42058891,0.00019579,2]
[348949253,1736889032553,-500.0,0.00019579,2]
[348949254,1736889032563,-500.0,0.00019579,2]
[348949255,1736889032577,-500.0,0.00019579,2]
[348949256,1736889032586,-500.0,0.00019579,2]
[348949257,1736889032595,-500.0,0.00019579,2]
[348949258,1736889032605,-500.0,0.00019579,2]
[348949259,1736889032614,-370.08217009,0.00019579,2]
[348949260,1736889032623,-500.0,0.00019579,2]
[348949261,1736889032633,-500.0,0.00019579,2]
[348949262,1736889032643,-500.0,0.00019579,2]
[348949263,1736889032652,-500.0,0.00019579,2]
[348949264,1736889032661,-500.0,0.00019579,2]
[348949265,1736889032670,-500.0,0.00019579,2]
[348949266,1736889032679,-500.0,0.00019579,2]
[348949267,1736889032688,-500.0,0.00019579,2]
[348949268,1736889032697,-500.0,0.00019579,2]
[348949269,1736889032707,-250.0,0.00019579,2]
[348949270,1736889032716,-500.0,0.00019579,2]
[348949271,1736889032726,-500.0,0.00019579,2]
[348949272,1736889032736,-500.0,0.00019579,2]
[348949273,1736889032745,-350.16128723,0.00019579,2]
[348949274,1736889032754,-195.33944466,0.00019579,2]
[348949275,1736889032763,-500.0,0.00019579,2]
[348949276,1736889032773,-631.46973354,0.00019579,2]
[348949277,1736889032783,-499.99999999,0.00019579,2]
[348949278,1736889032793,-519.40699501,0.00019652,2]
[348949279,1736889032802,-207.6442171,0.000199,2]
[348949280,1736889032811,-5213.1254545,0.00019904,2]
[348949281,1736889032820,-3507.0,0.0002,3]
[348949282,1736889032830,-3503.0,0.0002,3]
[348949283,1736889032840,-3503.0,0.0002,3]
[348949284,1736889032855,-3503.0,0.0002,3]
[348949285,1736889032869,-3503.0,0.0002,3]
[348949286,1736889032883,-3503.0,0.0002,3]
[348949287,1736889032896,-2358.0,0.0002,2]
[348949288,1736889032907,-207.64421706,0.00020167,2]
[348949289,1736889032919,-7291.69658474,0.00020287,2]
[348949290,1736889032933,-16.46739293,0.00020433,2]
[348949291,1736889032948,-191.17682413,0.00020433,2]
[348949292,1736889032961,-351.981561,0.00020447,2]
[348949293,1736889032973,-519.40699501,0.00020447,2]
[348949294,1736889032985,-7291.69658474,0.00020639,2]
[348949295,1736889032997,-207.64421706,0.000207,2]
[348949296,1736889033009,-587.0,0.0002087,2]
[348949297,1736889033022,-154.39,0.00020898,2]
[348949298,1736889033035,-207.64421706,0.00020967,2]
[348949299,1736889033049,-207.64421706,0.00021233,2]
[348949300,1736889033062,-519.40699501,0.00021242,2]
[348949301,1736889033073,-524.027,0.0002147,2]
[348949302,1736889033085,-207.64421706,0.000215,2]
[348949303,1736889033097,-2358.0,0.000216,4]
[348949304,1736889033109,-207.64421706,0.00021767,2]
[348949305,1736889033123,-28342.12198746,0.00021817,5]
[348949306,1736889033135,-7948.43388804,0.00021817,5]
[348949307,1736889033148,-32118.51689126,0.00021817,3]